bitfinex-derivatives/quotes_SOLF0:USTF0_20250320
["timestamp","ask_amount","ask_price","bid_price","bid_amount"]
[1742429464918,7.3648,135.75,135.74,0.04959909]
[1742429465216,48.90616515,135.77,135.74,0.04959909]
[1742429466321,7.3648,135.75,135.74,0.04959909]
[1742429467412,48.90616515,135.77,135.74,0.04959909]
[1742429467619,0.05571672,135.77,135.74,28.36959909]
[1742429469222,0.05571672,135.77,135.74,30.43909909]
[1742429469618,0.05571672,135.77,135.74,37.80419909]
[1742429469924,0.05571672,135.77,135.74,30.43909909]
[1742429470819,0.05571672,135.77,135.75,7.3644]
[1742429471526,0.05571672,135.77,135.76,7.3643]
[1742429472321,136.03439583,135.81,135.78,7.3629]
[1742429472515,136.03439583,135.81,135.77,28.32]
[1742429472721,129.60419583,135.81,135.78,28.32]
[1742429472920,129.60419583,135.81,135.8,7.3621]
[1742429473226,129.60419583,135.81,135.78,28.32]
[1742429473416,129.65984671,135.81,135.78,28.36731144]
[1742429474024,129.65984671,135.81,135.78,0.04731144]
[1742429474319,7.3624,135.8,135.78,0.04731144]
[1742429474526,129.65984671,135.81,135.78,0.04731144]
[1742429475421,7.3626,135.79,135.78,0.04731144]
[1742429476025,27.89274843,135.8,135.78,0.04731144]
[1742429478333,20.53044843,135.8,135.78,0.04731144]
[1742429478528,129.65984671,135.81,135.78,0.04731144]
[1742429478721,129.65984671,135.81,135.8,7.3621]
[1742429478923,129.65984671,135.81,135.79,28.42]
[1742429479626,137.02144671,135.81,135.79,28.42]
[1742429479930,20.53044843,135.8,135.78,0.04731144]
[1742429480328,7.3626,135.79,135.78,0.04731144]
[1742429481233,27.89284843,135.8,135.78,0.04731144]
[1742429481424,129.65984671,135.81,135.8,7.3621]
[1742429481729,129.65984671,135.81,135.79,28.38]
[1742429482124,129.65984671,135.81,135.8,7.3621]
[1742429483121,129.65984671,135.81,135.79,28.38]
[1742429483624,129.65984671,135.81,135.79,35.7424]
[1742429484328,129.65984671,135.81,135.79,28.38]
[1742429485624,129.65984671,135.81,135.79,35.7423]
[1742429486428,129.65984671,135.81,135.8,7.3621]
[1742429486928,129.65984671,135.81,135.79,28.38]
[1742429487121,129.65984671,135.81,135.78,0.04731144]
[1742429487620,20.53044843,135.8,135.78,0.04731144]
[1742429488019,129.65984671,135.81,135.78,0.04731144]
[1742429488731,7.3624,135.8,135.78,0.04731144]
[1742429488928,129.65984671,135.81,135.78,0.04731144]
[1742429489730,137.02164671,135.81,135.78,7.41051144]
[1742429490031,137.02164671,135.81,135.78,0.04731144]
[1742429491027,129.65984671,135.81,135.78,0.04731144]
[1742429491534,129.65984671,135.81,135.78,28.46731144]
[1742429492133,129.65984671,135.81,135.78,0.04731144]
[1742429493036,129.65984671,135.81,135.79,7.3623]
[1742429493235,129.65984671,135.81,135.78,0.04731144]
[1742429493628,129.65984671,135.81,135.79,28.38]
[1742429494833,129.65984671,135.81,135.79,35.7423]
[1742429495635,129.65984671,135.81,135.79,28.38]
[1742429497438,129.65984671,135.81,135.79,35.7424]
[1742429498138,129.65984671,135.81,135.8,7.3621]
[1742429498342,100.07501698,135.81,135.8,7.3621]
[1742429498641,44.12251698,135.81,135.8,7.3621]
[1742429498837,44.12251698,135.81,135.8,27.89254843]
[1742429499541,44.12251698,135.81,135.8,7.3621]
[1742429500446,44.12251698,135.81,135.79,35.7424]
[1742429500638,44.12251698,135.81,135.79,28.38]
[1742429500837,51.48451698,135.81,135.78,46.15503086]
[1742429501043,44.12251698,135.81,135.78,46.15503086]
[1742429501744,44.12251698,135.81,135.78,17.61503086]
[1742429502343,51.48431698,135.81,135.78,17.61503086]
[1742429502538,44.12251698,135.81,135.78,17.61503086]
[1742429503044,7.3626,135.79,135.78,17.61503086]
[1742429503640,7.3626,135.79,135.78,7.54731144]
[1742429505748,7.3637,135.77,135.76,28.5]
[1742429505941,27.89414843,135.77,135.76,25.2861]
[1742429506137,1.9737,135.78,135.72,68.9399521]
[1742429506848,0.05273515,135.76,135.74,0.05269067]
[1742429507238,0.05273515,135.76,135.75,7.3648]
[1742429507441,0.05273515,135.76,135.75,35.8848]
[1742429507643,44.0668661,135.81,135.75,49.05044843]
[1742429508047,44.0668661,135.81,135.75,53.11964843]
[1742429508249,44.0668661,135.81,135.76,7.364]
[1742429508651,7.3626,135.79,135.76,7.364]
[1742429508957,0.05042886,135.8,135.77,7.41278544]
[1742429509253,7.41282886,135.8,135.77,7.41278544]
[1742429509953,0.05042886,135.8,135.77,0.04918544]
[1742429510153,20.53044843,135.79,135.77,0.04918544]
[1742429510955,7.3632,135.78,135.77,0.04918544]
[1742429511456,49.09044843,135.79,135.73,45.99331942]
[1742429511854,20.53044843,135.77,135.73,38.62771942]
[1742429512051,20.53044843,135.75,135.73,10.06771942]
[1742429512453,7.3654,135.74,135.73,10.11600216]
[1742429513659,7.3654,135.74,135.73,0.04828274]
[1742429514154,7.367,135.71,135.7,40.3999521]
[1742429514746,7.3666,135.72,135.7,40.3999521]
[1742429514946,20.53044843,135.73,135.7,40.3999521]
[1742429515446,27.94455668,135.73,135.7,47.81873382]
[1742429515651,20.57865668,135.73,135.7,40.45153382]
[1742429515856,20.57865668,135.73,135.7,0.05158172]
[1742429516358,27.94485668,135.73,135.7,7.41878172]
[1742429516555,0.04820825,135.73,135.7,0.05158172]
[1742429516760,0.04820825,135.73,135.7,28.55158172]
[1742429518059,0.04820825,135.73,135.71,7.3669]
[1742429518254,0.04820825,135.73,135.7,28.55158172]
[1742429518659,7.41430825,135.73,135.7,35.91888172]
[1742429518965,0.04820825,135.73,135.7,28.55158172]
[1742429519157,7.367,135.71,135.7,0.05158172]
[1742429520361,7.3667,135.72,135.7,0.05158172]
[1742429520549,20.57865668,135.73,135.7,0.05158172]
[1742429520753,0.04820825,135.73,135.7,0.05158172]
[1742429521860,0.04820825,135.73,135.7,7.41858172]
[1742429522056,20.57865668,135.73,135.7,0.05158172]
[1742429522361,7.367,135.71,135.7,0.05158172]
[1742429522560,27.89744843,135.71,135.7,0.05158172]
[1742429523062,7.3667,135.72,135.7,0.05158172]
[1742429524261,48.95865668,135.73,135.7,0.05158172]
[1742429524461,20.57865668,135.73,135.7,0.05158172]
[1742429524858,27.94485668,135.73,135.7,0.05158172]
[1742429525065,20.57865668,135.73,135.7,0.05158172]
[1742429525255,20.53044843,135.71,135.7,0.05158172]
[1742429525455,27.89744843,135.71,135.7,0.05158172]
[1742429530164,22.51125668,135.73,135.7,0.05158172]
[1742429530566,22.51125668,135.73,135.7,7.41888172]
[1742429530760,22.51125668,135.73,135.7,0.05158172]
[1742429531164,20.53044843,135.71,135.7,0.05158172]
[1742429531561,27.89744843,135.71,135.7,0.05158172]
[1742429532565,22.51125668,135.73,135.7,0.05158172]
[1742429532868,0.04820825,135.73,135.71,7.3669]
[1742429533064,0.04820825,135.73,135.7,28.37158172]
[1742429533859,243.0,135.79,135.75,7.3643]
[1742429534062,361.019568,135.84,135.74,28.32]
[1742429534063,27.89274843,135.8,135.74,28.32]
[1742429534265,20.53044843,135.78,135.74,28.32]
[1742429534562,7.364,135.77,135.74,28.32]
[1742429534767,20.53044843,135.78,135.74,28.32]
[1742429534962,0.0548842,135.77,135.75,0.05297781]
[1742429535162,7.3646,135.76,135.75,0.05297781]
[1742429535363,27.89504843,135.76,135.75,0.05297781]
[1742429535762,20.53044843,135.76,135.71,10.06771942]
[1742429535966,20.53044843,135.74,135.71,10.06771942]
[1742429536163,7.3659,135.73,135.71,10.06771942]
[1742429536369,20.53044843,135.74,135.71,10.06771942]
[1742429536765,7.3656,135.74,135.71,10.12262336]
[1742429537067,20.53044843,135.72,135.71,10.12262336]
[1742429537374,7.3681,135.69,135.68,120.97210719]
[1742429537572,27.89854843,135.69,135.68,120.97210719]
[1742429537873,271.01044843,135.69,135.66,150.00196779]
[1742429538063,20.53044843,135.67,135.66,149.94898998]
[1742429538267,20.53044843,135.67,135.66,121.80836296]
[1742429538577,27.89964843,135.67,135.66,121.80836296]
[1742429540368,27.89964843,135.67,135.66,60.5338193]
[1742429540571,20.53044843,135.67,135.66,60.5338193]
[1742429541170,35.74164242,135.68,135.66,60.5338193]
[1742429541473,35.74164242,135.68,135.65,0.0507361]
[1742429541780,7.3693,135.67,135.65,0.0507361]
[1742429542267,35.74164242,135.68,135.65,0.0507361]
[1742429542673,7.3692,135.67,135.65,0.0507361]
[1742429543179,35.74164242,135.68,135.65,0.0507361]
[1742429544080,76.58416471,135.68,135.65,0.0507361]
[1742429544381,76.58416471,135.68,135.65,7.4209361]
[1742429545080,7.3693,135.67,135.65,0.0507361]
[1742429545484,40.89546471,135.68,135.65,0.0507361]
[1742429545682,76.60426471,135.68,135.65,7.4209361]
[1742429545973,45.97237299,135.68,135.65,0.0507361]
[1742429546175,7.3693,135.67,135.65,0.0507361]
[1742429546777,7.3697,135.66,135.65,0.0507361]
[1742429547082,32.86876872,135.66,135.62,27.89]
[1742429547278,7.3713,135.63,135.62,27.89]
[1742429547778,7.3713,135.63,135.6,1.951]
[1742429547978,7.371,135.64,135.6,9.3238]
[1742429548283,0.04994539,135.63,135.6,9.37788108]
[1742429548581,7.42134539,135.63,135.6,9.37788108]
[1742429548882,0.04994539,135.63,135.6,2.00508108]
[1742429550780,7.42154539,135.63,135.6,9.37798108]
[1742429551080,0.04994539,135.63,135.6,2.00508108]
[1742429551477,0.04994539,135.63,135.6,0.05408108]
[1742429551885,0.04994539,135.63,135.61,7.3721]
[1742429552382,0.04994539,135.63,135.62,7.3719]
[1742429552578,0.04994539,135.63,135.6,0.05408108]
[1742429552974,0.04994539,135.63,135.61,28.34]
[1742429553182,0.04994539,135.63,135.62,7.3719]
[1742429553579,0.04994539,135.63,135.61,28.34]
[1742429554284,0.04994539,135.63,135.61,35.7121]
[1742429554979,0.04994539,135.63,135.62,7.3719]
[1742429555183,40.84252229,135.66,135.62,1.956]
[1742429555381,40.84252229,135.66,135.64,7.3705]
[1742429555688,10.21063057,135.66,135.62,1.956]
[1742429556283,0.05314016,135.65,135.63,0.0556723]
[1742429556685,7.3713,135.64,135.63,0.0556723]
[1742429559189,7.3713,135.64,135.63,7.23e-05]
[1742429561090,27.92704655,135.64,135.63,7.23e-05]
[1742429561293,7.3732,135.6,135.58,20.1325]
[1742429561494,20.55574655,135.62,135.58,20.1325]
[1742429561695,20.55574655,135.62,135.58,4.0425]
[1742429561892,7.3733,135.6,135.58,4.0425]
[1742429562395,7.42864582,135.6,135.58,4.08922856]
[1742429562787,0.05534582,135.6,135.58,4.08922856]
[1742429562989,0.05534582,135.6,135.58,11.46292856]
[1742429563187,0.05534582,135.6,135.58,4.08922856]
[1742429563393,7.3715,135.63,135.58,4.08922856]
[1742429563593,30.76637712,135.64,135.58,6.19612856]
[1742429563802,7.3733,135.6,135.58,4.08922856]
[1742429564401,30.76637712,135.64,135.58,4.08922856]
[1742429564594,0.0561264,135.6,135.58,4.08922856]
[1742429565000,0.0561264,135.6,135.58,0.04672856]
[1742429565196,7.3735,135.59,135.58,0.04672856]
[1742429571905,31.25239315,135.59,135.58,0.04672856]
[1742429574109,64.72141544,135.59,135.58,0.04672856]
[1742429574912,64.72141544,135.59,135.58,7.42072856]
[1742429575414,64.72141544,135.59,135.58,0.04672856]
[1742429575613,0.0561264,135.6,135.58,0.04672856]
[1742429575914,7.4292264,135.6,135.58,0.04672856]
[1742429576815,7.3735,135.59,135.58,0.04672856]
[1742429577713,27.92924655,135.59,135.58,0.04672856]
[1742429579016,7.3757,135.55,135.54,27.91]
[1742429579416,7.3757,135.55,135.52,28.34]
[1742429579714,20.55574655,135.58,135.52,28.34]
[1742429579917,64.09601638,135.59,135.52,28.34]
[1742429580219,7.42859162,135.56,135.54,0.05651327]
[1742429580517,0.05319162,135.56,135.54,0.05651327]
[1742429580713,0.05319162,135.56,135.55,7.3757]
[1742429581011,0.05319162,135.56,135.55,35.7157]
[1742429581213,7.3743,135.58,135.55,35.7157]
[1742429581420,7.3743,135.58,135.55,37.8598]
[1742429581713,30.09832466,135.59,135.55,51.03984655]
[1742429582019,13.34362466,135.59,135.57,20.55574655]
[1742429582222,13.34362466,135.59,135.58,28.34]
[1742429582423,13.39483105,135.59,135.58,35.714]
[1742429582727,30.63189172,135.6,135.58,28.34]
[1742429583021,30.63189172,135.6,135.59,7.3735]
[1742429583814,30.63189172,135.65,135.58,28.34]
[1742429584019,0.05025796,135.61,135.58,28.34]
[1742429584220,0.05025796,135.61,135.6,0.04674598]
[1742429584419,0.05025796,135.61,135.6,7.41974598]
[1742429586222,5.796e-05,135.61,135.6,7.41974598]
[1742429587719,5.796e-05,135.61,135.6,14.79974598]
[1742429588514,30.63189172,135.67,135.66,7.3697]
[1742429589220,37.99989172,135.7,135.66,7.3697]
[1742429589824,0.05464384,135.69,135.67,0.04858909]
[1742429591628,30.63189172,135.73,135.68,48.89574655]
[1742429592423,30.63189172,135.73,135.72,7.3664]
[1742429592624,30.63189172,135.73,135.72,35.7064]
[1742429592824,30.63189172,135.73,135.72,28.34]
[1742429593024,30.63189172,135.73,135.72,35.7064]
[1742429594224,27.46459172,135.73,135.72,35.7064]
[1742429594526,11.744,135.79,135.72,56.25574655]
[1742429594727,4.3813,135.79,135.72,48.89574655]
[1742429595024,24.93704655,135.79,135.72,28.34]
[1742429595429,4.3813,135.79,135.72,48.89574655]
[1742429595626,0.05407099,135.77,135.74,0.05062167]
[1742429595823,0.05407099,135.77,135.75,28.32]
[1742429597826,0.05407099,135.77,135.74,0.05062167]
[1742429598021,7.3643,135.76,135.74,0.05062167]
[1742429598622,7.41797099,135.77,135.74,0.05062167]
[1742429598831,0.05407099,135.77,135.74,0.05062167]
[1742429599529,7.41807099,135.77,135.74,0.05062167]
[1742429599929,0.05407099,135.77,135.74,0.05062167]
[1742429600130,20.60981754,135.77,135.74,0.05062167]
[1742429600628,7.3648,135.75,135.74,0.05062167]
[1742429603333,0.05407099,135.77,135.74,0.05062167]
[1742429603528,0.05407099,135.77,135.75,28.3]
[1742429604530,0.05407099,135.77,135.75,35.6648]
[1742429604928,0.05407099,135.77,135.76,7.3643]
[1742429605133,0.05407099,135.77,135.75,28.3]
[1742429607032,0.05407099,135.77,135.76,7.3643]
[1742429607236,44.0668661,135.81,135.75,28.3]
[1742429607438,51.4287661,135.81,135.77,7.3632]
[1742429607638,44.0668661,135.81,135.78,28.3]
[1742429608136,44.0668661,135.81,135.8,7.3621]
[1742429611438,7.3592,135.86,135.79,0.05544576]
[1742429611640,7.3592,135.86,135.79,2.16164576]
[1742429612146,7.3594,135.85,135.81,7.361]
[1742429612339,2.0817,135.87,135.82,28.3]
[1742429612536,20.55574655,135.86,135.82,28.3]
[1742429612741,7.3599,135.84,135.83,0.05084208]
[1742429613249,27.91564655,135.84,135.83,0.05084208]
[1742429613450,7.3605,135.83,135.82,27.87]
[1742429616744,7.3605,135.83,135.82,21.1316]
[1742429616944,7.361,135.82,135.81,0.05146146]
[1742429617149,27.91674655,135.82,135.81,0.05146146]
[1742429617750,7.361,135.82,135.81,0.05146146]
[1742429618749,20.60257921,135.84,135.81,0.05146146]
[1742429618750,0.04683266,135.84,135.81,0.05146146]
[1742429619148,7.40703266,135.84,135.81,7.41266146]
[1742429619546,0.04683266,135.84,135.81,0.05146146]
[1742429619754,0.04683266,135.84,135.83,7.3605]
[1742429619953,0.04683266,135.84,135.83,35.6405]
[1742429620554,20.55574655,135.9,135.84,7.3597]
[1742429620957,7.3582,135.88,135.84,7.3597]
[1742429621255,20.55574655,135.9,135.83,35.6402]
[1742429621556,20.55574655,135.9,135.83,28.28]
[1742429621754,0.02376026,135.88,135.85,0.05599536]
[1742429622153,7.3588,135.86,135.85,0.05599536]
[1742429624058,7.3585,135.87,135.85,0.05599536]
[1742429624257,20.57950681,135.88,135.85,0.05599536]
[1742429624457,7.3587,135.87,135.85,0.05599536]
[1742429625354,7.3588,135.86,135.85,0.05599536]
[1742429625957,7.3585,135.87,135.85,0.05599536]
[1742429626155,0.02376026,135.88,135.85,0.05599536]
[1742429626852,7.3588,135.86,135.85,0.05599536]
[1742429627056,0.02376026,135.88,135.85,0.05599536]
[1742429627257,7.3586,135.87,135.85,0.05599536]
[1742429627456,0.02376026,135.88,135.85,0.05599536]
[1742429627763,7.3588,135.86,135.85,0.05599536]
[1742429630065,7.3584,135.87,135.85,0.05599536]
[1742429632469,7.3588,135.86,135.85,0.05599536]
[1742429632658,20.57950681,135.88,135.85,0.05599536]
[1742429633063,27.91454655,135.86,135.85,0.05599536]
[1742429633462,20.55574655,135.86,135.77,2.0779]
[1742429633671,7.361,135.82,135.79,28.5223]
[1742429634062,7.361,135.82,135.79,21.16]
[1742429634267,7.3607,135.83,135.8,7.3621]
[1742429634571,7.40757049,135.83,135.8,7.41626826]
[1742429634972,0.04687049,135.83,135.81,7.3615]
[1742429635265,0.04687049,135.83,135.81,35.6415]
[1742429637261,0.04687049,135.83,135.81,28.28]
[1742429640071,7.40747049,135.83,135.81,28.28]
[1742429641771,0.04687049,135.83,135.81,28.28]
[1742429643178,0.04687049,135.83,135.82,7.361]
[1742429643475,0.04687049,135.83,135.81,28.28]
[1742429643675,7.40757049,135.83,135.81,28.28]
[1742429643968,0.04687049,135.83,135.81,28.28]
[1742429644375,0.04687049,135.83,135.82,7.361]
[1742429645579,0.04687049,135.83,135.81,28.28]
[1742429646272,7.40757049,135.83,135.81,28.28]
[1742429646778,7.3616,135.81,135.8,0.05416826]
[1742429649579,7.3637,135.77,135.76,49.43]
[1742429649980,7.3637,135.77,135.74,35.6249]
[1742429650676,0.05489629,135.77,135.74,28.31468603]
[1742429651274,0.05489629,135.77,135.74,48.87043258]
[1742429652780,0.05489629,135.77,135.74,0.05468603]
[1742429652979,0.05489629,135.77,135.74,28.31468603]
[1742429653180,0.05489629,135.77,135.74,0.05468603]
[1742429653377,7.3647,135.76,135.74,0.05468603]
[1742429653779,0.05489629,135.77,135.74,0.05468603]
[1742429654087,0.05489629,135.77,135.74,7.41998603]
[1742429654382,0.05489629,135.77,135.74,0.05468603]
[1742429654684,7.41909629,135.77,135.74,0.05468603]
[1742429655284,7.41909629,135.77,135.74,16.13468603]
[1742429655684,0.05489629,135.77,135.74,16.13468603]
[1742429656080,2.1889,135.83,135.8,7.362]
[1742429656285,7.3602,135.84,135.78,28.28]
[1742429656483,2.1284,135.86,135.79,28.28]
[1742429656685,7.3597,135.85,135.81,7.3613]
[1742429656885,2.1284,135.86,135.79,28.28]
[1742429657082,20.55574655,135.85,135.79,28.28]
[1742429657281,0.05315471,135.84,135.81,0.05600714]
[1742429657482,7.3605,135.83,135.81,0.05600714]
[1742429659375,0.05315471,135.84,135.81,0.05600714]
[1742429659781,7.41345471,135.84,135.81,0.05600714]
[1742429659981,0.05315471,135.84,135.81,0.05600714]
[1742429660882,0.05315471,135.84,135.81,7.41730714]
[1742429661082,0.05315471,135.84,135.81,0.05600714]
[1742429661882,0.05315471,135.84,135.82,7.361]
[1742429662083,0.05315471,135.84,135.81,0.05600714]
[1742429662282,20.55574655,135.83,135.81,0.05600714]
[1742429662482,7.361,135.82,135.81,0.05600714]
[1742429663990,7.363,135.79,135.78,28.26]
[1742429664284,20.55574655,135.81,135.76,28.26]
[1742429664484,7.3624,135.8,135.76,28.26]
[1742429665080,7.3633,135.78,135.77,0.05428628]
[1742429665683,7.41011675,135.79,135.77,0.05428628]
[1742429665889,0.04721675,135.79,135.77,0.05428628]
[1742429666085,0.04721675,135.79,135.77,7.41778628]
[1742429666984,7.40991675,135.79,135.77,7.41778628]
[1742429667190,0.04721675,135.79,135.77,7.41778628]
[1742429668788,0.04721675,135.79,135.77,0.05428628]
[1742429669789,28.26,135.78,135.74,16.08]
[1742429669982,20.55574655,135.75,135.69,28.26]
[1742429670181,20.55574655,135.75,135.66,2.174]
[1742429670382,20.55574655,135.73,135.67,28.26]
[1742429670587,20.55574655,135.73,135.68,28.26]
[1742429670987,0.05342929,135.72,135.69,0.05564078]
[1742429671785,7.3673,135.71,135.69,0.05564078]
[1742429672494,7.3675,135.7,135.69,0.05564078]
[1742429673394,51.10264655,135.71,135.64,58.30296739]
[1742429673596,20.55574655,135.68,135.64,58.30296739]
[1742429674194,20.55574655,135.68,135.64,28.26]
[1742429674496,0.05624865,135.67,135.65,0.05097925]
[1742429675195,27.92544655,135.66,135.65,0.05097925]
[1742429677690,20.55574655,135.66,135.58,243.02]
[1742429677894,20.55574655,135.64,135.59,28.28]
[1742429678088,20.55574655,135.64,135.56,22.65284655]
[1742429678293,20.55574655,135.64,135.58,28.28]
[1742429678796,27.92694655,135.64,135.6,7.3727]
[1742429678997,0.05452939,135.62,135.6,7.42208018]
[1742429680391,0.05452939,135.62,135.61,7.3724]
[1742429681595,0.05452939,135.62,135.6,7.42218018]
[1742429681794,0.05452939,135.62,135.6,0.04938018]
[1742429682195,0.05452939,135.62,135.61,7.3724]
[1742429683398,0.05452939,135.62,135.6,7.42208018]
[1742429685000,0.05452939,135.62,135.61,7.3724]
[1742429686897,0.05452939,135.62,135.6,7.42218018]
[1742429687490,0.05452939,135.62,135.61,7.3724]
[1742429695007,0.05452939,135.62,135.6,7.42208018]
[1742429695407,7.42682939,135.62,135.6,0.04938018]
[1742429695605,0.05452939,135.62,135.6,0.04938018]
[1742429695907,27.92814655,135.61,135.6,0.04938018]
[1742429696103,0.05452939,135.62,135.6,0.04938018]
[1742429698504,7.42672939,135.62,135.6,0.04938018]
[1742429699205,0.05452939,135.62,135.6,7.42208018]
[1742429699807,0.05452939,135.62,135.6,0.04938018]
[1742429700309,7.42672939,135.62,135.6,0.04938018]
[1742429700509,0.05452939,135.62,135.6,0.04938018]
[1742429701105,20.55574655,135.61,135.52,23.28404655]
[1742429701305,20.55574655,135.59,135.54,28.28]
[1742429701505,20.55574655,135.57,135.52,2.7283]
[1742429701706,20.55574655,135.57,135.53,28.28]
[1742429701918,7.3752,135.56,135.53,35.6565]
[1742429702312,7.42648135,135.56,135.53,28.33404513]
[1742429702508,0.05128135,135.56,135.53,28.33404513]
[1742429702714,2.8365,135.62,135.54,20.55574655]
[1742429702911,23.29934655,135.63,135.54,20.55574655]
[1742429703208,23.29934655,135.63,135.6,7.3729]
[1742429703406,20.55574655,135.63,135.59,28.28]
[1742429703805,388.38284655,135.65,135.59,28.28]
[1742429704006,0.04903246,135.62,135.61,7.3719]
[1742429704706,20.55574655,135.67,135.6,0.05038205]
[1742429705102,7.3702,135.66,135.62,7.3716]
[1742429705302,20.55574655,135.67,135.62,28.28]
[1742429705507,7.3709,135.64,135.62,28.28]
[1742429705707,20.55574655,135.65,135.62,28.28]
[1742429705906,20.55574655,135.65,135.63,0.04694154]
[1742429706106,27.92604655,135.65,135.63,0.04694154]
[1742429706509,0.05631602,135.66,135.63,0.04694154]
[1742429706907,20.55574655,135.65,135.63,0.04694154]
[1742429707109,23.14984655,135.65,135.63,0.04694154]
[1742429707314,7.3708,135.64,135.63,0.04694154]
[1742429708015,7.3722,135.62,135.59,28.28]
[1742429708211,20.55574655,135.63,135.59,28.28]
[1742429708705,7.3722,135.62,135.59,35.6532]
[1742429708910,20.55574655,135.63,135.59,28.28]
[1742429709216,20.55574655,135.63,135.56,2.6346]
[1742429709217,0.04768463,135.62,135.6,0.0540825]
[1742429709414,7.3724,135.61,135.6,0.0540825]
[1742429709615,20.55574655,135.61,135.48,324.22459435]
[1742429709816,7.3742,135.58,135.51,30.9146]
[1742429710215,20.55574655,135.59,135.51,30.9146]
[1742429710414,7.3745,135.58,135.51,30.9146]
[1742429710614,20.55574655,135.59,135.51,30.9146]
[1742429710816,0.05103513,135.56,135.53,0.04727084]
[1742429711016,0.05103513,135.56,135.54,35.6559]
[1742429711410,0.05103513,135.56,135.54,28.28]
[1742429711615,0.05103513,135.56,135.53,28.32727084]
[1742429712712,7.42653513,135.56,135.53,28.32727084]
[1742429713219,7.3757,135.55,135.53,28.32727084]
[1742429713414,0.05103513,135.56,135.53,28.32727084]
[1742429715221,0.05103513,135.56,135.54,7.3759]
[1742429715420,0.05103513,135.56,135.53,28.32727084]
[1742429715818,0.05103513,135.56,135.55,7.3757]
[1742429716012,0.05103513,135.56,135.53,28.32727084]
[1742429716610,7.42653513,135.56,135.53,35.70377084]
[1742429716810,7.42653513,135.56,135.53,28.32727084]
[1742429717010,7.42653513,135.56,135.53,35.70397084]
[1742429717317,0.05103513,135.56,135.53,28.32727084]
[1742429717618,0.05103513,135.56,135.53,35.70387084]
[1742429717821,0.05103513,135.56,135.53,28.32727084]
[1742429719519,0.05103513,135.56,135.55,7.3757]
[1742429720018,0.05103513,135.56,135.53,28.32727084]
[1742429720517,0.05103513,135.56,135.53,35.70377084]
[1742429720721,7.42643513,135.56,135.53,35.70377084]
[1742429720919,20.55574655,135.55,135.53,0.04727084]
[1742429721323,7.3762,135.54,135.53,0.04727084]
[1742429722220,20.60678168,135.56,135.53,0.04727084]
[1742429722723,7.376,135.55,135.53,0.04727084]
[1742429723518,27.98218168,135.56,135.53,7.42387084]
[1742429723721,20.60678168,135.56,135.53,0.04727084]
[1742429724113,20.60678168,135.56,135.54,7.3761]
[1742429724422,0.05103513,135.56,135.53,28.32727084]
[1742429724716,0.05103513,135.56,135.54,7.3762]
[1742429724922,0.05103513,135.56,135.53,28.32727084]
[1742429725322,0.05103513,135.56,135.55,7.3757]
[1742429726020,0.05103513,135.56,135.54,9.9893]
[1742429726222,0.05103513,135.56,135.54,7.376]
[1742429726823,0.05103513,135.56,135.53,28.32727084]
[1742429727319,0.05103513,135.56,135.55,7.3757]
[1742429727926,20.55574655,135.62,135.58,7.3736]
[1742429728118,263.95574655,135.63,135.57,28.28]
[1742429728615,7.3731,135.6,135.57,28.28]
[1742429729218,0.05064355,135.6,135.57,28.33123294]
[1742429729620,0.05064355,135.6,135.58,7.3736]
[1742429730016,0.05064355,135.6,135.57,28.33123294]
[1742429730224,0.05064355,135.6,135.59,7.3735]
[1742429731426,0.05064355,135.6,135.57,28.33123294]
[1742429731824,7.42414355,135.6,135.57,28.33123294]
[1742429732026,0.05064355,135.6,135.57,28.33123294]
[1742429732425,7.3736,135.59,135.57,28.33123294]
[1742429732625,0.05064355,135.6,135.57,7.42583294]
[1742429733023,0.05064355,135.6,135.57,0.05123294]
[1742429733225,20.55574655,135.59,135.57,0.05123294]
[1742429733729,7.374,135.58,135.57,0.05123294]
[1742429734026,20.55574655,135.59,135.57,0.05123294]
[1742429734426,27.92944655,135.59,135.57,0.05123294]
[1742429734625,20.55574655,135.59,135.57,0.05123294]
[1742429735226,27.92934655,135.59,135.57,0.05123294]
[1742429735428,20.55574655,135.59,135.57,0.05123294]
[1742429735730,7.3754,135.56,135.53,7.3765]
[1742429736030,27.93114655,135.56,135.53,7.3765]
[1742429736832,20.60656812,135.56,135.54,7.3761]
[1742429737030,20.60656812,135.56,135.53,0.04719088]
[1742429738121,27.98206812,135.56,135.53,0.04719088]
[1742429738526,7.3758,135.55,135.53,0.04719088]
[1742429738926,20.55574655,135.54,135.53,0.04719088]
[1742429739524,27.93194655,135.54,135.53,0.04719088]
[1742429739931,20.55574655,135.54,135.53,0.04719088]